[Event "Early-Titled-Tuesday-Blitz-May-14-2024"]
[Site "Chess.com"]
[Date "2024.05.14"]
[Round "3"]
[White "AlexanderKing"]
[Black "TERMINATOR_PC"]
[Result "0-1"]
[WhiteElo "2548"]
[BlackElo "2613"]
[TimeControl "180+1"]
[EndTime "8:30:07 PDT"]
[Termination "TERMINATOR_PC won on time"]

1. Nf3 {[%clk 0:03:00.9]} 1... Nf6 {[%clk 0:02:12]} 2. c4 {[%clk 0:03:01.8]}
2... e6 {[%clk 0:02:12.1]} 3. g3 {[%clk 0:03:01.3]} 3... a6 {[%clk 0:02:10.7]}
4. Bg2 {[%clk 0:03:00.9]} 4... b5 {[%clk 0:02:11.2]} 5. b3 {[%clk 0:03:01]} 5...
c5 {[%clk 0:02:10.4]} 6. O-O {[%clk 0:02:55.9]} 6... Bb7 {[%clk 0:02:10.2]} 7.
Nc3 {[%clk 0:02:53.9]} 7... Qb6 {[%clk 0:02:10.2]} 8. Bb2 {[%clk 0:02:39.3]}
8... Be7 {[%clk 0:02:05.1]} 9. d4 {[%clk 0:01:53]} 9... cxd4 {[%clk 0:01:50.6]}
10. Qxd4 {[%clk 0:01:52]} 10... Qxd4 {[%clk 0:01:50]} 11. Nxd4 {[%clk
0:01:52.9]} 11... Bxg2 {[%clk 0:01:47.4]} 12. Kxg2 {[%clk 0:01:53.8]} 12... bxc4
{[%clk 0:01:47.6]} 13. bxc4 {[%clk 0:01:54.7]} 13... O-O {[%clk 0:01:44.1]} 14.
Na4 {[%clk 0:01:45.7]} 14... Ra7 {[%clk 0:01:43.6]} 15. Rab1 {[%clk 0:01:43.5]}
15... Rc7 {[%clk 0:01:41]} 16. c5 {[%clk 0:01:36.4]} 16... Nc6 {[%clk
0:01:33.4]} 17. Nxc6 {[%clk 0:01:34.2]} 17... Rxc6 {[%clk 0:01:34.3]} 18. Bxf6
{[%clk 0:01:29.3]} 18... gxf6 {[%clk 0:01:33.4]} 19. Rfd1 {[%clk 0:01:26.6]}
19... Bxc5 {[%clk 0:01:29.3]} 20. Rxd7 {[%clk 0:01:26.2]} 20... f5 {[%clk
0:01:28.7]} 21. Rbb7 {[%clk 0:01:02.3]} 21... a5 {[%clk 0:01:03.4]} 22. e3
{[%clk 0:00:03]} 22... Bb4 {[%clk 0:01:01.6]} 23. Nb2 {[%clk 0:00:02.1]} 23...
Rc2 {[%clk 0:00:41.8]} 24. Nd3 {[%clk 0:00:02.5]} 24... Rxa2 {[%clk 0:00:42.4]}
25. Nxb4 {[%clk 0:00:02.9]} 25... axb4 {[%clk 0:00:42.8]} 26. Rxb4 {[%clk
0:00:03.8]} 26... Rc8 {[%clk 0:00:42.9]} 27. Rb1 {[%clk 0:00:02]} 27... Rcc2
{[%clk 0:00:42.1]} 28. Rf1 {[%clk 0:00:02.5]} 28... Kg7 {[%clk 0:00:42.7]} 29.
Rd4 {[%clk 0:00:02.8]} 29... Kg6 {[%clk 0:00:40.7]} 30. Rf4 {[%clk 0:00:03.3]}
30... e5 {[%clk 0:00:37.9]} 31. Rb4 {[%clk 0:00:02.1]} 31... Re2 {[%clk
0:00:33.7]} 32. Rb7 {[%clk 0:00:02.4]} 32... Rxe3 {[%clk 0:00:31.7]} 33. Rb6+
{[%clk 0:00:01.9]} 33... f6 {[%clk 0:00:31.6]} 34. Rb8 {[%clk 0:00:01.7]} 34...
Ree2 {[%clk 0:00:30.8]} 35. Rg8+ {[%clk 0:00:01.7]} 35... Kf7 {[%clk 0:00:31.1]}
36. Rh8 {[%clk 0:00:02.1]} 36... Kg7 {[%clk 0:00:31.6]} 37. Rb8 {[%clk 0:00:03]}
37... e4 {[%clk 0:00:30.6]} 38. Re8 {[%clk 0:00:02.5]} 38... Kf7 {[%clk
0:00:27.5]} 39. Rh8 {[%clk 0:00:01.7]} 39... Kg6 {[%clk 0:00:17.5]} 40. Re8
{[%clk 0:00:01.9]} 40... h6 {[%clk 0:00:17.7]} 41. h4 {[%clk 0:00:01.7]} 41...
Kf7 {[%clk 0:00:17]} 42. Rh8 {[%clk 0:00:01.6]} 42... e3 {[%clk 0:00:17.5]} 43.
Rxh6 {[%clk 0:00:01.7]} 43... Rxf2+ {[%clk 0:00:17.9]} 44. Rxf2 {[%clk 0:00:02]}
44... Rxf2+ {[%clk 0:00:18]} 45. Kg1 {[%clk 0:00:01.6]} 45... Kg7 {[%clk
0:00:18.5]} 46. Rh5 {[%clk 0:00:01.2]} 46... f4 {[%clk 0:00:09.2]} 47. gxf4
{[%clk 0:00:00.4]} 47... Rxf4 {[%clk 0:00:09.6]} 48. Ra5 {[%clk 0:00:00.1]}
48... Rxh4 {[%clk 0:00:09.8]} 49. Kg2 {[%clk 0:00:00.3]} 49... Re4 {[%clk
0:00:10]} 50. Kf3 {[%clk 0:00:01.2]} 50... e2 {[%clk 0:00:10.2]} 51. Kxe4 {[%clk
0:00:01.4]} 51... e1=Q+ {[%clk 0:00:10.6]} 0-1

[Event "Early-Titled-Tuesday-Blitz-May-14-2024"]
[Site "Chess.com"]
[Date "2024.05.14"]
[Round "3"]
[White "HeroWilczek"]
[Black "remyrushbrooke"]
[Result "1-0"]
[WhiteElo "2544"]
[BlackElo "2325"]
[TimeControl "180+1"]
[EndTime "8:30:07 PDT"]
[Termination "HeroWilczek won on time"]

1. Nf3 {[%clk 0:03:00.9]} 1... g6 {[%clk 0:02:57.4]} 2. b3 {[%clk 0:03:01.6]}
2... Bg7 {[%clk 0:02:57.5]} 3. Nc3 {[%clk 0:03:01.7]} 3... d5 {[%clk 0:02:56.3]}
4. e3 {[%clk 0:03:01]} 4... c5 {[%clk 0:02:56.3]} 5. Bb2 {[%clk 0:03:01.3]} 5...
Nc6 {[%clk 0:02:55.4]} 6. Bb5 {[%clk 0:03:02]} 6... Nf6 {[%clk 0:02:53.6]} 7.
O-O {[%clk 0:03:01.6]} 7... O-O {[%clk 0:02:51.6]} 8. d4 {[%clk 0:03:02.2]} 8...
e6 {[%clk 0:02:35.4]} 9. Re1 {[%clk 0:02:49.5]} 9... a6 {[%clk 0:02:30.7]} 10.
Bxc6 {[%clk 0:02:49.6]} 10... bxc6 {[%clk 0:02:31.6]} 11. dxc5 {[%clk
0:02:47.9]} 11... Ne4 {[%clk 0:02:23.5]} 12. Nd4 {[%clk 0:02:47.8]} 12... Nxc5
{[%clk 0:02:01.9]} 13. Nxc6 {[%clk 0:02:42.6]} 13... Qc7 {[%clk 0:01:57.5]} 14.
Nd4 {[%clk 0:02:25.1]} 14... Bb7 {[%clk 0:01:56.9]} 15. Rc1 {[%clk 0:02:23]}
15... e5 {[%clk 0:01:37.1]} 16. Nf3 {[%clk 0:02:16]} 16... Rad8 {[%clk
0:01:34.8]} 17. Qe2 {[%clk 0:02:13.5]} 17... Rfe8 {[%clk 0:01:31.1]} 18. Red1
{[%clk 0:02:13.7]} 18... d4 {[%clk 0:01:22.4]} 19. Nb1 {[%clk 0:02:13.7]} 19...
Ne6 {[%clk 0:01:09]} 20. Nbd2 {[%clk 0:02:03.3]} 20... dxe3 {[%clk 0:01:01.6]}
21. fxe3 {[%clk 0:02:01.6]} 21... e4 {[%clk 0:00:57.3]} 22. Nd4 {[%clk
0:01:55.9]} 22... Nxd4 {[%clk 0:00:56.8]} 23. exd4 {[%clk 0:01:54.7]} 23...
Bxd4+ {[%clk 0:00:49.3]} 24. Bxd4 {[%clk 0:01:54.8]} 24... Rxd4 {[%clk
0:00:49.8]} 25. Nc4 {[%clk 0:01:55.5]} 25... Rxd1+ {[%clk 0:00:49.2]} 26. Rxd1
{[%clk 0:01:55.2]} 26... Qc5+ {[%clk 0:00:48.4]} 27. Qe3 {[%clk 0:01:53.7]}
27... Qh5 {[%clk 0:00:45]} 28. Rd7 {[%clk 0:01:51]} 28... Bc6 {[%clk 0:00:40.1]}
29. Rd6 {[%clk 0:01:49.2]} 29... Bd5 {[%clk 0:00:37.4]} 30. Nd2 {[%clk
0:01:24.7]} 30... Qe5 {[%clk 0:00:21]} 31. Rxa6 {[%clk 0:01:16.6]} 31... f5
{[%clk 0:00:20.7]} 32. c4 {[%clk 0:01:12.4]} 32... f4 {[%clk 0:00:19.4]} 33. Qc5
{[%clk 0:01:07.3]} 33... Qa1+ {[%clk 0:00:18.4]} 34. Nf1 {[%clk 0:01:07.9]}
34... Bf7 {[%clk 0:00:16.9]} 35. Ra7 {[%clk 0:00:37.2]} 35... e3 {[%clk
0:00:16.4]} 36. Re7 {[%clk 0:00:37.3]} 36... e2 {[%clk 0:00:09.7]} 37. Rxe8+
{[%clk 0:00:35.3]} 37... Bxe8 {[%clk 0:00:10.6]} 38. Qd5+ {[%clk 0:00:29.2]}
38... Bf7 {[%clk 0:00:09.8]} 39. Qa8+ {[%clk 0:00:21.5]} 39... Kg7 {[%clk
0:00:08]} 40. Qf3 {[%clk 0:00:22.1]} 40... e1=Q {[%clk 0:00:08.1]} 41. Qxf4
{[%clk 0:00:21.8]} 41... Qxf1+ {[%clk 0:00:05.5]} 42. Qxf1 {[%clk 0:00:22.7]}
42... Qxf1+ {[%clk 0:00:05.4]} 43. Kxf1 {[%clk 0:00:23.6]} 43... Kf6 {[%clk
0:00:05.5]} 44. Ke2 {[%clk 0:00:24.1]} 44... Ke5 {[%clk 0:00:06.4]} 45. Ke3
{[%clk 0:00:24.6]} 45... g5 {[%clk 0:00:06.2]} 46. a4 {[%clk 0:00:24.1]} 46...
h5 {[%clk 0:00:06.5]} 47. g3 {[%clk 0:00:22.3]} 47... Bg6 {[%clk 0:00:06.2]} 48.
a5 {[%clk 0:00:21.9]} 48... Bc2 {[%clk 0:00:05.4]} 49. b4 {[%clk 0:00:22]} 49...
Bb3 {[%clk 0:00:05.5]} 50. Kd3 {[%clk 0:00:21.1]} 50... g4 {[%clk 0:00:04.1]}
51. a6 {[%clk 0:00:19.7]} 51... Ba4 {[%clk 0:00:03.4]} 52. b5 {[%clk 0:00:18.7]}
52... Kd6 {[%clk 0:00:02.3]} 53. a7 {[%clk 0:00:18.2]} 1-0

[Event "Early-Titled-Tuesday-Blitz-May-14-2024"]
[Site "Chess.com"]
[Date "2024.05.14"]
[Round "3"]
[White "klercaku"]
[Black "WilsonPalencia21"]
[Result "0-1"]
[WhiteElo "2260"]
[BlackElo "2588"]
[TimeControl "180+1"]
[EndTime "8:30:08 PDT"]
[Termination "WilsonPalencia21 won by resignation"]

1. e4 {[%clk 0:03:00.9]} 1... c5 {[%clk 0:02:58.3]} 2. Nf3 {[%clk 0:02:59.2]}
2... d6 {[%clk 0:02:51.5]} 3. d4 {[%clk 0:02:58.7]} 3... cxd4 {[%clk 0:02:52.3]}
4. Nxd4 {[%clk 0:02:58]} 4... Nf6 {[%clk 0:02:52.8]} 5. Nc3 {[%clk 0:02:56.1]}
5... g6 {[%clk 0:02:53.2]} 6. Be2 {[%clk 0:02:55.3]} 6... Bg7 {[%clk 0:02:53.7]}
7. Be3 {[%clk 0:02:55.8]} 7... O-O {[%clk 0:02:54.5]} 8. Qd2 {[%clk 0:02:56.2]}
8... Nc6 {[%clk 0:02:55.1]} 9. O-O {[%clk 0:02:54.3]} 9... Nxd4 {[%clk
0:02:55.7]} 10. Bxd4 {[%clk 0:02:53.8]} 10... Qa5 {[%clk 0:02:56.3]} 11. Rad1
{[%clk 0:02:49]} 11... Be6 {[%clk 0:02:55.1]} 12. Nd5 {[%clk 0:02:40.6]} 12...
Qxd2 {[%clk 0:02:50.1]} 13. Nxe7+ {[%clk 0:02:23.3]} 13... Kh8 {[%clk
0:02:49.9]} 14. Rxd2 {[%clk 0:02:12.3]} 14... Nxe4 {[%clk 0:02:46.4]} 15. Bxg7+
{[%clk 0:02:07.2]} 15... Kxg7 {[%clk 0:02:45.9]} 16. Rd4 {[%clk 0:02:05.9]}
16... Nf6 {[%clk 0:02:41.8]} 17. Bf3 {[%clk 0:01:23.3]} 17... Rfe8 {[%clk
0:02:31.4]} 18. Nd5 {[%clk 0:01:15.9]} 18... Bxd5 {[%clk 0:02:20.8]} 19. Bxd5
{[%clk 0:01:16.8]} 19... Re2 {[%clk 0:02:14.5]} 20. Bb3 {[%clk 0:01:10.5]} 20...
d5 {[%clk 0:02:11.8]} 21. g3 {[%clk 0:01:01.1]} 21... b5 {[%clk 0:02:09.9]} 22.
Rfd1 {[%clk 0:00:59.4]} 22... a5 {[%clk 0:01:57.2]} 23. Bxd5 {[%clk 0:00:54.5]}
23... Rc8 {[%clk 0:01:46.9]} 24. c4 {[%clk 0:00:27.4]} 24... Rxb2 {[%clk
0:01:41.7]} 25. cxb5 {[%clk 0:00:16.5]} 25... Nxd5 {[%clk 0:01:28.5]} 26. Rxd5
{[%clk 0:00:15.4]} 26... Rcc2 {[%clk 0:01:28]} 27. Rf1 {[%clk 0:00:10]} 27...
Rxa2 {[%clk 0:01:27.4]} 28. b6 {[%clk 0:00:08]} 28... Rcb2 {[%clk 0:01:27.5]}
29. Rd6 {[%clk 0:00:07.4]} 29... Ra3 {[%clk 0:01:21.4]} 30. Rc1 {[%clk
0:00:05.8]} 30... Rf3 {[%clk 0:01:03.4]} 31. Rf1 {[%clk 0:00:04.3]} 31... Rfb3
{[%clk 0:01:02.6]} 32. Rc1 {[%clk 0:00:03.6]} 32... Rxb6 {[%clk 0:01:00.4]} 33.
Rxb6 {[%clk 0:00:02.7]} 33... Rxb6 {[%clk 0:00:59.8]} 34. Ra1 {[%clk 0:00:03.6]}
34... Ra6 {[%clk 0:00:59.6]} 35. Ra4 {[%clk 0:00:03.7]} 35... Kf6 {[%clk
0:00:59.5]} 36. Kf1 {[%clk 0:00:04.3]} 36... Ke5 {[%clk 0:01:00]} 37. Ke2 {[%clk
0:00:05]} 37... Kd5 {[%clk 0:01:00.6]} 38. Kd3 {[%clk 0:00:05.5]} 38... Kc5
{[%clk 0:01:01.2]} 39. Kc3 {[%clk 0:00:06]} 39... Kb5 {[%clk 0:01:01.7]} 40. Kb3
{[%clk 0:00:06.2]} 40... Rd6 {[%clk 0:00:59.6]} 41. Rf4 {[%clk 0:00:05.3]} 41...
f5 {[%clk 0:00:58.2]} 42. h4 {[%clk 0:00:03.1]} 42... Rd3+ {[%clk 0:00:57.5]}
43. Kc2 {[%clk 0:00:02.7]} 43... Rd5 {[%clk 0:00:56.3]} 44. Kb2 {[%clk
0:00:02.2]} 44... Re5 {[%clk 0:00:54.2]} 45. Kb3 {[%clk 0:00:01.9]} 45... Re4
{[%clk 0:00:52.8]} 46. Rf3 {[%clk 0:00:01.8]} 46... a4+ {[%clk 0:00:51.7]} 47.
Ka3 {[%clk 0:00:02.2]} 47... Rd4 {[%clk 0:00:50.9]} 48. Re3 {[%clk 0:00:01.8]}
48... Re4 {[%clk 0:00:49.1]} 49. Rf3 {[%clk 0:00:01.9]} 49... Kc5 {[%clk
0:00:47.5]} 50. Ka2 {[%clk 0:00:01.4]} 50... Rd4 {[%clk 0:00:42.1]} 51. Ka3
{[%clk 0:00:01.4]} 51... Kd5 {[%clk 0:00:41.5]} 52. h5 {[%clk 0:00:01.9]} 52...
Ke5 {[%clk 0:00:40.7]} 53. Re3+ {[%clk 0:00:02.1]} 53... Kf6 {[%clk 0:00:40.7]}
54. hxg6 {[%clk 0:00:02.1]} 54... hxg6 {[%clk 0:00:40.5]} 55. Rc3 {[%clk
0:00:02.1]} 55... Kg5 {[%clk 0:00:40.2]} 56. f4+ {[%clk 0:00:02.2]} 56... Kg4
{[%clk 0:00:39.8]} 57. Re3 {[%clk 0:00:02.6]} 57... Re4 {[%clk 0:00:39.9]} 58.
Rd3 {[%clk 0:00:02.4]} 58... Kh3 {[%clk 0:00:38.3]} 59. Rc3 {[%clk 0:00:01.9]}
59... Kg2 {[%clk 0:00:38.7]} 60. Rd3 {[%clk 0:00:01.6]} 60... Kf2 {[%clk
0:00:39.1]} 61. Rc3 {[%clk 0:00:02]} 61... Re3 {[%clk 0:00:39.4]} 62. Rxe3
{[%clk 0:00:00.5]} 62... Kxe3 {[%clk 0:00:40.3]} 63. Kxa4 {[%clk 0:00:00.8]}
63... Kf3 {[%clk 0:00:40.8]} 64. Kb3 {[%clk 0:00:01.7]} 64... Kxg3 {[%clk
0:00:41.2]} 65. Kc3 {[%clk 0:00:02.6]} 65... Kxf4 {[%clk 0:00:41.8]} 66. Kd3
{[%clk 0:00:03.5]} 66... Kf3 {[%clk 0:00:42.3]} 67. Kd2 {[%clk 0:00:03.8]} 67...
Kf2 {[%clk 0:00:42.9]} 68. Kd3 {[%clk 0:00:04.3]} 68... g5 {[%clk 0:00:43.5]}
69. Kd2 {[%clk 0:00:04.5]} 69... g4 {[%clk 0:00:43.9]} 70. Kd1 {[%clk
0:00:05.4]} 70... g3 {[%clk 0:00:44.2]} 0-1

[Event "Early-Titled-Tuesday-Blitz-May-14-2024"]
[Site "Chess.com"]
[Date "2024.05.14"]
[Round "3"]
[White "slorovel"]
[Black "tarno17"]
[Result "1-0"]
[WhiteElo "2563"]
[BlackElo "2167"]
[TimeControl "180+1"]
[EndTime "8:30:09 PDT"]
[Termination "slorovel won by checkmate"]

1. e4 {[%clk 0:02:56.9]} 1... c5 {[%clk 0:02:59.7]} 2. Nf3 {[%clk 0:02:56.3]}
2... e6 {[%clk 0:03:00.2]} 3. g3 {[%clk 0:02:54.1]} 3... Nc6 {[%clk 0:02:53.5]}
4. Bg2 {[%clk 0:02:53.5]} 4... d6 {[%clk 0:02:54]} 5. O-O {[%clk 0:02:53.2]}
5... Nf6 {[%clk 0:02:54.3]} 6. Nc3 {[%clk 0:02:50.9]} 6... Be7 {[%clk
0:02:53.7]} 7. d4 {[%clk 0:02:51]} 7... cxd4 {[%clk 0:02:53.6]} 8. Nxd4 {[%clk
0:02:51.9]} 8... O-O {[%clk 0:02:31.2]} 9. a4 {[%clk 0:02:48.8]} 9... e5 {[%clk
0:02:13.1]} 10. Ndb5 {[%clk 0:02:25.5]} 10... a6 {[%clk 0:01:54.9]} 11. Na3
{[%clk 0:02:24.3]} 11... Be6 {[%clk 0:01:55.4]} 12. h3 {[%clk 0:02:16.7]} 12...
Qc8 {[%clk 0:01:30.6]} 13. Kh2 {[%clk 0:02:16.3]} 13... Rd8 {[%clk 0:01:29.9]}
14. Nd5 {[%clk 0:01:56.5]} 14... Bxd5 {[%clk 0:01:10.7]} 15. exd5 {[%clk
0:01:57.4]} 15... Nd4 {[%clk 0:01:06.9]} 16. c3 {[%clk 0:01:53]} 16... Nf5
{[%clk 0:00:52.9]} 17. g4 {[%clk 0:01:51.7]} 17... Nh4 {[%clk 0:00:50.8]} 18.
Bh1 {[%clk 0:01:45.7]} 18... h6 {[%clk 0:00:25.3]} 19. Qe2 {[%clk 0:01:33.4]}
19... Qc5 {[%clk 0:00:21.5]} 20. Be3 {[%clk 0:01:31.5]} 20... Qc7 {[%clk
0:00:13.5]} 21. Nc4 {[%clk 0:01:31.9]} 21... Ng6 {[%clk 0:00:12]} 22. Bb6 {[%clk
0:01:16.1]} 22... Qd7 {[%clk 0:00:11.8]} 23. Bxd8 {[%clk 0:01:00.2]} 23... Rxd8
{[%clk 0:00:12.7]} 24. Ne3 {[%clk 0:01:00.4]} 24... Nh7 {[%clk 0:00:09]} 25. Be4
{[%clk 0:00:57.1]} 25... Ng5 {[%clk 0:00:07.9]} 26. Bf5 {[%clk 0:00:54.2]} 26...
Qc7 {[%clk 0:00:06.2]} 27. Qc4 {[%clk 0:00:51.6]} 27... Qb6 {[%clk 0:00:06.1]}
28. b4 {[%clk 0:00:48]} 28... Nf3+ {[%clk 0:00:06.5]} 29. Kg2 {[%clk 0:00:44.7]}
29... Ngh4+ {[%clk 0:00:06.1]} 30. Kh1 {[%clk 0:00:41.9]} 30... Nd2 {[%clk
0:00:06.3]} 31. a5 {[%clk 0:00:39.1]} 31... Qa7 {[%clk 0:00:04.2]} 32. Qe2
{[%clk 0:00:33.7]} 32... Nxf1 {[%clk 0:00:04.2]} 33. Rxf1 {[%clk 0:00:34.3]}
33... Nxf5 {[%clk 0:00:04.4]} 34. Nxf5 {[%clk 0:00:35.2]} 34... Bf6 {[%clk
0:00:02.9]} 35. Qe4 {[%clk 0:00:33.3]} 35... Qb8 {[%clk 0:00:03.2]} 36. c4
{[%clk 0:00:33.2]} 36... Qc7 {[%clk 0:00:03.7]} 37. Ra1 {[%clk 0:00:31.9]} 37...
b6 {[%clk 0:00:04.1]} 38. Ng3 {[%clk 0:00:27.7]} 38... Rb8 {[%clk 0:00:04.1]}
39. Nh5 {[%clk 0:00:25.8]} 39... bxa5 {[%clk 0:00:03.7]} 40. bxa5 {[%clk
0:00:25.2]} 40... Rb2 {[%clk 0:00:03.5]} 41. Nxf6+ {[%clk 0:00:24.8]} 41... gxf6
{[%clk 0:00:04.2]} 42. Qf3 {[%clk 0:00:19.4]} 42... Kg7 {[%clk 0:00:03.9]} 43.
Rc1 {[%clk 0:00:19]} 43... Qc5 {[%clk 0:00:03.7]} 44. Kg2 {[%clk 0:00:15.8]}
44... Rd2 {[%clk 0:00:02.8]} 45. h4 {[%clk 0:00:11.6]} 45... Qxa5 {[%clk
0:00:02.9]} 46. c5 {[%clk 0:00:10.7]} 46... dxc5 {[%clk 0:00:02.7]} 47. g5
{[%clk 0:00:11.3]} 47... fxg5 {[%clk 0:00:02.3]} 48. hxg5 {[%clk 0:00:12.2]}
48... hxg5 {[%clk 0:00:02.8]} 49. Qf5 {[%clk 0:00:10.9]} 49... f6 {[%clk
0:00:02.6]} 50. Rb1 {[%clk 0:00:10]} 50... Qc7 {[%clk 0:00:02.3]} 51. Rh1 {[%clk
0:00:08.8]} 51... Kf8 {[%clk 0:00:01.5]} 52. Rh8+ {[%clk 0:00:08.2]} 52... Kg7
{[%clk 0:00:01.3]} 53. Qh7# {[%clk 0:00:08.1]} 1-0

[Event "Early-Titled-Tuesday-Blitz-May-14-2024"]
[Site "Chess.com"]
[Date "2024.05.14"]
[Round "3"]
[White "tgpgoat"]
[Black "SlavenPastar"]
[Result "1/2-1/2"]
[WhiteElo "2458"]
[BlackElo "2651"]
[TimeControl "180+1"]
[EndTime "8:30:11 PDT"]
[Termination "Game drawn - insufficient material"]

1. Na3 {[%clk 0:03:00.9]} 1... b6 {[%clk 0:02:56.7]} 2. c4 {[%clk 0:02:57.9]}
2... Bb7 {[%clk 0:02:56.2]} 3. Nf3 {[%clk 0:02:57.7]} 3... Nf6 {[%clk
0:02:56.7]} 4. g3 {[%clk 0:02:56.8]} 4... e6 {[%clk 0:02:57]} 5. Nc2 {[%clk
0:02:55.2]} 5... Be7 {[%clk 0:02:56]} 6. Bg2 {[%clk 0:02:54.2]} 6... O-O {[%clk
0:02:56.6]} 7. O-O {[%clk 0:02:54.2]} 7... c5 {[%clk 0:02:54.9]} 8. b3 {[%clk
0:02:53.4]} 8... d5 {[%clk 0:02:54.3]} 9. cxd5 {[%clk 0:02:54.1]} 9... Nxd5
{[%clk 0:02:53.2]} 10. Bb2 {[%clk 0:02:54]} 10... Nc6 {[%clk 0:02:48.2]} 11. Ne5
{[%clk 0:02:53.5]} 11... Bf6 {[%clk 0:02:43.7]} 12. Nxc6 {[%clk 0:02:52]} 12...
Bxc6 {[%clk 0:02:44.5]} 13. Bxf6 {[%clk 0:02:50.6]} 13... Qxf6 {[%clk
0:02:45.4]} 14. Ne3 {[%clk 0:02:49.7]} 14... Rfd8 {[%clk 0:02:27.3]} 15. Qc2
{[%clk 0:02:43.7]} 15... Nb4 {[%clk 0:02:18.6]} 16. Qc3 {[%clk 0:02:43.5]} 16...
Bxg2 {[%clk 0:02:13.5]} 17. Kxg2 {[%clk 0:02:41]} 17... Rd4 {[%clk 0:01:53.1]}
18. a3 {[%clk 0:02:35.9]} 18... Nc6 {[%clk 0:01:32]} 19. b4 {[%clk 0:02:32.5]}
19... Qe5 {[%clk 0:01:21.9]} 20. bxc5 {[%clk 0:02:27.8]} 20... bxc5 {[%clk
0:01:21.7]} 21. Rfc1 {[%clk 0:02:27.1]} 21... Ne7 {[%clk 0:01:12.5]} 22. Qxc5
{[%clk 0:02:20.1]} 22... Qxc5 {[%clk 0:01:06.7]} 23. Rxc5 {[%clk 0:02:21]} 23...
Rxd2 {[%clk 0:01:07]} 24. Kf1 {[%clk 0:02:17.8]} 24... Rd7 {[%clk 0:00:17.7]}
25. Rac1 {[%clk 0:02:06.4]} 25... f6 {[%clk 0:00:16.4]} 26. Rc7 {[%clk
0:02:06.3]} 26... Rad8 {[%clk 0:00:16.9]} 27. R7c3 {[%clk 0:02:03.1]} 27... Kf7
{[%clk 0:00:16.6]} 28. h4 {[%clk 0:02:01]} 28... Nd5 {[%clk 0:00:16.3]} 29. Nxd5
{[%clk 0:02:00.5]} 29... Rxd5 {[%clk 0:00:17.2]} 30. Rc7+ {[%clk 0:02:00.1]}
30... R8d7 {[%clk 0:00:17.8]} 31. Kg2 {[%clk 0:01:56.6]} 31... Ke7 {[%clk
0:00:17.6]} 32. R7c3 {[%clk 0:01:56.3]} 32... Ra5 {[%clk 0:00:17.2]} 33. Re3
{[%clk 0:01:55.7]} 33... e5 {[%clk 0:00:16]} 34. Rc6 {[%clk 0:01:54.5]} 34...
Rd2 {[%clk 0:00:14.3]} 35. h5 {[%clk 0:01:53.3]} 35... h6 {[%clk 0:00:14.1]} 36.
Kf3 {[%clk 0:01:53.3]} 36... Kd7 {[%clk 0:00:12.3]} 37. Rcc3 {[%clk 0:01:49.8]}
37... Rd4 {[%clk 0:00:11.5]} 38. Rb3 {[%clk 0:01:49.2]} 38... Ke7 {[%clk
0:00:09.3]} 39. Rec3 {[%clk 0:01:43.5]} 39... Rd7 {[%clk 0:00:08]} 40. Kg4
{[%clk 0:01:42.8]} 40... Ke6 {[%clk 0:00:06]} 41. e4 {[%clk 0:01:42]} 41... Ra4
{[%clk 0:00:05.7]} 42. Rc6+ {[%clk 0:01:40.5]} 42... Kf7 {[%clk 0:00:05.7]} 43.
Kf5 {[%clk 0:01:35.3]} 43... Re7 {[%clk 0:00:05.3]} 44. f3 {[%clk 0:01:34.7]}
44... Rd7 {[%clk 0:00:05.7]} 45. Rbc3 {[%clk 0:01:34]} 45... Re7 {[%clk
0:00:05.8]} 46. Rc7 {[%clk 0:01:33.8]} 46... Rxc7 {[%clk 0:00:02.1]} 47. Rxc7+
{[%clk 0:01:34.7]} 47... Kf8 {[%clk 0:00:02.5]} 48. Ke6 {[%clk 0:01:27.8]} 48...
Kg8 {[%clk 0:00:02.8]} 49. Rc3 {[%clk 0:01:24.5]} 49... Ra6+ {[%clk 0:00:02.5]}
50. Kf5 {[%clk 0:01:23.9]} 50... Rd6 {[%clk 0:00:01.7]} 51. Rc7 {[%clk 0:01:23]}
51... Kf8 {[%clk 0:00:01.5]} 52. Kg6 {[%clk 0:01:17.2]} 52... Rd3 {[%clk
0:00:02.2]} 53. Rf7+ {[%clk 0:01:16.1]} 53... Ke8 {[%clk 0:00:02.6]} 54. Rxg7
{[%clk 0:01:12.4]} 54... Rxf3 {[%clk 0:00:03.3]} 55. Kxh6 {[%clk 0:01:12]} 55...
Rxa3 {[%clk 0:00:03.5]} 56. g4 {[%clk 0:01:08.5]} 56... a5 {[%clk 0:00:03.6]}
57. Ra7 {[%clk 0:01:08.9]} 57... Rg3 {[%clk 0:00:03.3]} 58. Kg6 {[%clk 0:01:07]}
58... Rxg4+ {[%clk 0:00:03.8]} 59. Kxf6 {[%clk 0:01:07.4]} 59... Rxe4 {[%clk
0:00:04.1]} 60. h6 {[%clk 0:01:07.5]} 60... Rf4+ {[%clk 0:00:04.1]} 61. Kxe5
{[%clk 0:01:07.5]} 61... Rh4 {[%clk 0:00:04.3]} 62. h7 {[%clk 0:01:07.8]} 62...
Kf8 {[%clk 0:00:04]} 63. Kf6 {[%clk 0:01:04.7]} 63... Rh6+ {[%clk 0:00:04.1]}
64. Kg5 {[%clk 0:01:04.3]} 64... Rh1 {[%clk 0:00:04.8]} 65. Kg6 {[%clk 0:00:55]}
65... Rg1+ {[%clk 0:00:05.1]} 66. Kh6 {[%clk 0:00:55.4]} 66... Rh1+ {[%clk
0:00:05.6]} 67. Kg5 {[%clk 0:00:56]} 67... Rg1+ {[%clk 0:00:06.3]} 68. Kf4
{[%clk 0:00:56.3]} 68... Rh1 {[%clk 0:00:06.4]} 69. Ke5 {[%clk 0:00:56.6]} 69...
a4 {[%clk 0:00:06]} 70. Kd4 {[%clk 0:00:56.8]} 70... a3 {[%clk 0:00:06.3]} 71.
Kc3 {[%clk 0:00:57.4]} 71... a2 {[%clk 0:00:06.7]} 72. Kb2 {[%clk 0:00:55.1]}
72... a1=Q+ {[%clk 0:00:06.2]} 73. Rxa1 {[%clk 0:00:55.9]} 73... Rxh7 {[%clk
0:00:06]} 74. Ra8+ {[%clk 0:00:56.8]} 74... Kg7 {[%clk 0:00:06.3]} 75. Ra7+
{[%clk 0:00:57.3]} 75... Kg6 {[%clk 0:00:06.9]} 76. Ra6+ {[%clk 0:00:57.7]}
76... Kg7 {[%clk 0:00:06.9]} 77. Ra7+ {[%clk 0:00:58.1]} 77... Kg6 {[%clk
0:00:07.4]} 78. Rxh7 {[%clk 0:00:58.5]} 78... Kxh7 {[%clk 0:00:07.7]} 1/2-1/2